[Event "Titled Tuesday Blitz August 22 Early 2023"]
[White "Simonovic, Miroslav"]
[Black "Berezin, Viktor"]
[WhiteFideId "919152"]
[BlackFideId "14107872"]
[WhiteElo "2264"]
[BlackElo "2464"]
[Result "0-1"]
[Round "9"]
[TimeControl "180+1"]
[Date "2023.08.22"]
[WhiteClock "0:00:05"]
[BlackClock "0:00:12"]
[Board "154"]

1. d4 {[%clk 0:03:00]}  Nf6 {[%clk 0:02:30]} 2. Bg5 {[%clk 0:03:01]}  Ne4 {[%clk 0:02:29]} 3. Bf4 {[%clk 0:03:01]}  d6 {[%clk 0:02:29]} 4. f3 {[%clk 0:03:00]}  Nf6 {[%clk 0:02:30]} 5. e4 {[%clk 0:02:59]}  Nbd7 {[%clk 0:02:30]} 6. c4 {[%clk 0:02:59]}  e5 {[%clk 0:02:29]} 7. dxe5 {[%clk 0:02:59]}  dxe5 {[%clk 0:02:29]} 8. Bg3 {[%clk 0:02:59]}  Bc5 {[%clk 0:02:29]} 9. Nc3 {[%clk 0:02:59]}  c6 {[%clk 0:02:29]} 10. Nh3 {[%clk 0:02:55]}  Qe7 {[%clk 0:02:28]} 11. Bf2 {[%clk 0:02:55]}  O-O {[%clk 0:02:23]} 12. Qc2 {[%clk 0:02:52]}  Bxf2+ {[%clk 0:02:15]} 13. Nxf2 {[%clk 0:02:53]}  Nc5 {[%clk 0:02:16]} 14. Nd3 {[%clk 0:02:51]}  Ne6 {[%clk 0:02:11]} 15. O-O-O {[%clk 0:02:39]}  Nd4 {[%clk 0:02:10]} 16. Qf2 {[%clk 0:02:40]}  c5 {[%clk 0:02:05]} 17. Nd5 {[%clk 0:02:37]}  Nxd5 {[%clk 0:02:03]} 18. exd5 {[%clk 0:02:37]}  Bf5 {[%clk 0:01:59]} 19. g4 {[%clk 0:02:34]}  Bg6 {[%clk 0:01:56]} 20. f4 {[%clk 0:02:25]}  exf4 {[%clk 0:01:41]} 21. Qxf4 {[%clk 0:02:16]}  b5 {[%clk 0:01:38]} 22. Nxc5 {[%clk 0:02:04]}  Rac8 {[%clk 0:01:12]} 23. Rxd4 {[%clk 0:01:57]}  Rxc5 {[%clk 0:01:04]} 24. Bg2 {[%clk 0:01:30]}  bxc4 {[%clk 0:01:02]} 25. Be4 {[%clk 0:01:00]}  c3 {[%clk 0:00:59]} 26. Bxg6 {[%clk 0:00:44]}  cxb2+ {[%clk 0:00:53]} 27. Kxb2 {[%clk 0:00:41]}  fxg6 {[%clk 0:00:45]} 28. Qd2 {[%clk 0:00:30]}  Rb5+ {[%clk 0:00:45]} 29. Ka1 {[%clk 0:00:30]}  Qa3 {[%clk 0:00:24]} 30. Rd3 {[%clk 0:00:17]}  Qd6 {[%clk 0:00:19]} 31. Rb1 {[%clk 0:00:15]}  Qe5+ {[%clk 0:00:17]} 32. Qc3 {[%clk 0:00:15]}  Rxb1+ {[%clk 0:00:13]} 33. Kxb1 {[%clk 0:00:15]}  Rf1+ {[%clk 0:00:13]} 34. Kc2 {[%clk 0:00:13]}  Qe2+ {[%clk 0:00:11]} 35. Rd2 {[%clk 0:00:12]}  Qe4+ {[%clk 0:00:10]} 36. Qd3 {[%clk 0:00:11]}  Qa4+ {[%clk 0:00:08]} 37. Qb3 {[%clk 0:00:11]}  Qe4+ {[%clk 0:00:05]} 38. Kb2 {[%clk 0:00:10]}  Rb1+ {[%clk 0:00:03]} 39. Ka3 {[%clk 0:00:10]}  Rxb3+ {[%clk 0:00:03]} 40. axb3 {[%clk 0:00:11]}  Qe3 {[%clk 0:00:03]} 41. Rd1 {[%clk 0:00:10]}  Qc5+ {[%clk 0:00:03]} 42. Kb2 {[%clk 0:00:10]}  Qd6 {[%clk 0:00:04]} 43. Rd2 {[%clk 0:00:08]}  Kf7 {[%clk 0:00:05]} 44. h3 {[%clk 0:00:07]}  Ke7 {[%clk 0:00:05]} 45. Rd3 {[%clk 0:00:07]}  Qe5+ {[%clk 0:00:05]} 46. Kc2 {[%clk 0:00:08]}  Kd6 {[%clk 0:00:06]} 47. Kd2 {[%clk 0:00:07]}  a5 {[%clk 0:00:06]} 48. Kc2 {[%clk 0:00:07]}  Qa1 {[%clk 0:00:06]} 49. Kd2 {[%clk 0:00:07]}  a4 {[%clk 0:00:06]} 50. bxa4 {[%clk 0:00:07]}  Qxa4 {[%clk 0:00:07]} 51. Ke3 {[%clk 0:00:07]}  Qb4 {[%clk 0:00:07]} 52. Ke2 {[%clk 0:00:06]}  g5 {[%clk 0:00:08]} 53. Ke3 {[%clk 0:00:07]}  g6 {[%clk 0:00:08]} 54. Kf3 {[%clk 0:00:06]}  h5 {[%clk 0:00:09]} 55. gxh5 {[%clk 0:00:05]}  gxh5 {[%clk 0:00:10]} 56. Ke2 {[%clk 0:00:06]}  g4 {[%clk 0:00:09]} 57. hxg4 {[%clk 0:00:07]}  Qxg4+ {[%clk 0:00:09]} 58. Kd2 {[%clk 0:00:03]}  h4 {[%clk 0:00:09]} 59. Kc3 {[%clk 0:00:03]}  h3 {[%clk 0:00:09]} 60. Rd4 {[%clk 0:00:03]}  Qg3+ {[%clk 0:00:09]} 61. Kc4 {[%clk 0:00:03]}  Qg2 {[%clk 0:00:10]} 62. Re4 {[%clk 0:00:04]}  Qxe4+ {[%clk 0:00:10]} 63. Kc3 {[%clk 0:00:04]}  Qxd5 {[%clk 0:00:11]} 64. Kc2 {[%clk 0:00:04]}  h2 {[%clk 0:00:12]} 65. Kb2 {[%clk 0:00:04]}  h1=Q {[%clk 0:00:13]} 66. Kc3 {[%clk 0:00:04]}  Qhe4 {[%clk 0:00:12]} 67. Kb2 {[%clk 0:00:05]}  Qdd3 {[%clk 0:00:13]} 68. Kc1 {[%clk 0:00:05]}  Qc2# {[%clk 0:00:12]} 0-1


[Site "https://www.chess.com"]

[Event "Titled Tuesday Blitz August 22 Early 2023"]
[White "Tsyhanchuk, Stanislav"]
[Black "Zaichenko, Daria"]
[WhiteFideId "13505130"]
[BlackFideId "4197453"]
[WhiteElo "2455"]
[BlackElo "2262"]
[Result "0-1"]
[Round "9"]
[TimeControl "180+1"]
[Date "2023.08.22"]
[WhiteClock "0:01:55"]
[BlackClock "0:01:46"]
[Board "155"]

1. c4 {[%clk 0:02:58]}  e6 {[%clk 0:02:59]} 2. Nc3 {[%clk 0:02:58]}  d5 {[%clk 0:02:57]} 3. cxd5 {[%clk 0:02:58]}  exd5 {[%clk 0:02:57]} 4. d4 {[%clk 0:02:59]}  Be7 {[%clk 0:02:57]} 5. Nf3 {[%clk 0:02:58]}  c6 {[%clk 0:02:57]} 6. Bf4 {[%clk 0:02:53]}  Bf5 {[%clk 0:02:57]} 7. e3 {[%clk 0:02:52]}  Nf6 {[%clk 0:02:54]} 8. Nh4 {[%clk 0:02:48]}  Be6 {[%clk 0:02:50]} 9. Bd3 {[%clk 0:02:47]}  Ne4 {[%clk 0:02:45]} 10. Nf3 {[%clk 0:02:42]}  f5 {[%clk 0:02:44]} 11. O-O {[%clk 0:02:39]}  Nd7 {[%clk 0:02:44]} 12. Ne5 {[%clk 0:02:33]}  Nxe5 {[%clk 0:02:37]} 13. Bxe5 {[%clk 0:02:30]}  O-O {[%clk 0:02:37]} 14. f3 {[%clk 0:02:19]}  Nf6 {[%clk 0:02:33]} 15. Qc2 {[%clk 0:02:15]}  Qd7 {[%clk 0:02:27]} 16. e4 {[%clk 0:02:12]}  fxe4 {[%clk 0:02:24]} 17. fxe4 {[%clk 0:02:13]}  dxe4 {[%clk 0:02:15]} 18. Nxe4 {[%clk 0:02:14]}  Nxe4 {[%clk 0:02:10]} 19. Bxe4 {[%clk 0:02:15]}  h6 {[%clk 0:01:55]} 20. Qd3 {[%clk 0:02:10]}  Bf6 {[%clk 0:01:52]} 21. Qg3 {[%clk 0:02:08]}  Bxe5 {[%clk 0:01:49]} 22. dxe5 {[%clk 0:01:55]}  Qd4+ {[%clk 0:01:46]} 0-1


[Site "https://www.chess.com"]

[Event "Titled Tuesday Blitz August 22 Early 2023"]
[White "Derichs, Roger"]
[Black "ZeGood_ZeBad_ZeUgly"]
[WhiteFideId "4630076"]
[WhiteElo "2428"]
[BlackElo "2247"]
[Result "1-0"]
[Round "9"]
[TimeControl "180+1"]
[Date "2023.08.22"]
[WhiteClock "0:00:06"]
[BlackClock "0:00:00"]
[Board "156"]

1. Nf3 {[%clk 0:03:00]}  Nf6 {[%clk 0:02:55]} 2. c4 {[%clk 0:02:59]}  c5 {[%clk 0:02:54]} 3. b3 {[%clk 0:02:59]}  Nc6 {[%clk 0:02:54]} 4. Bb2 {[%clk 0:03:00]}  e6 {[%clk 0:02:54]} 5. g3 {[%clk 0:02:57]}  Be7 {[%clk 0:02:53]} 6. Bg2 {[%clk 0:02:58]}  d5 {[%clk 0:02:50]} 7. O-O {[%clk 0:02:56]}  O-O {[%clk 0:02:49]} 8. e3 {[%clk 0:02:53]}  b6 {[%clk 0:02:35]} 9. Nc3 {[%clk 0:02:48]}  Ba6 {[%clk 0:02:28]} 10. Qe2 {[%clk 0:02:47]}  Rc8 {[%clk 0:02:23]} 11. Rfd1 {[%clk 0:02:43]}  d4 {[%clk 0:02:11]} 12. exd4 {[%clk 0:02:40]}  cxd4 {[%clk 0:02:11]} 13. Nb5 {[%clk 0:02:35]}  d3 {[%clk 0:02:00]} 14. Qe3 {[%clk 0:02:29]}  Bc5 {[%clk 0:01:59]} 15. Qf4 {[%clk 0:02:28]}  Bxb5 {[%clk 0:01:44]} 16. cxb5 {[%clk 0:02:27]}  Nb4 {[%clk 0:01:45]} 17. Ne5 {[%clk 0:02:13]}  Nbd5 {[%clk 0:01:41]} 18. Qf3 {[%clk 0:02:09]}  Nb4 {[%clk 0:01:35]} 19. Nc6 {[%clk 0:02:06]}  Nxc6 {[%clk 0:01:33]} 20. bxc6 {[%clk 0:02:07]}  Bd4 {[%clk 0:01:25]} 21. Bxd4 {[%clk 0:02:01]}  Qxd4 {[%clk 0:01:26]} 22. Rac1 {[%clk 0:02:01]}  Rc7 {[%clk 0:01:19]} 23. Rc4 {[%clk 0:01:55]}  Qd6 {[%clk 0:01:18]} 24. b4 {[%clk 0:01:48]}  e5 {[%clk 0:00:52]} 25. b5 {[%clk 0:01:42]}  e4 {[%clk 0:00:49]} 26. Qe3 {[%clk 0:01:43]}  Re8 {[%clk 0:00:48]} 27. Qd4 {[%clk 0:01:32]}  Qe5 {[%clk 0:00:28]} 28. a4 {[%clk 0:01:19]}  Kf8 {[%clk 0:00:22]} 29. Qxe5 {[%clk 0:01:10]}  Rxe5 {[%clk 0:00:23]} 30. f3 {[%clk 0:01:11]}  exf3 {[%clk 0:00:15]} 31. Bxf3 {[%clk 0:01:12]}  Ne8 {[%clk 0:00:13]} 32. Rd4 {[%clk 0:01:06]}  a6 {[%clk 0:00:13]} 33. Rb1 {[%clk 0:01:03]}  axb5 {[%clk 0:00:12]} 34. axb5 {[%clk 0:01:04]}  Ra7 {[%clk 0:00:10]} 35. Rxd3 {[%clk 0:01:01]}  Ra5 {[%clk 0:00:10]} 36. Rd8 {[%clk 0:00:56]}  Ke7 {[%clk 0:00:10]} 37. Rd7+ {[%clk 0:00:56]}  Ke6 {[%clk 0:00:09]} 38. d4 {[%clk 0:00:55]}  Rexb5 {[%clk 0:00:08]} 39. d5+ {[%clk 0:00:54]}  Kf6 {[%clk 0:00:07]} 40. Rxb5 {[%clk 0:00:52]}  Rxb5 {[%clk 0:00:08]} 41. c7 {[%clk 0:00:50]}  Rc5 {[%clk 0:00:09]} 42. d6 {[%clk 0:00:50]}  Ke6 {[%clk 0:00:05]} 43. Re7+ {[%clk 0:00:31]}  Kxd6 {[%clk 0:00:06]} 44. Rxe8 {[%clk 0:00:30]}  Rxc7 {[%clk 0:00:07]} 45. Re2 {[%clk 0:00:29]}  g6 {[%clk 0:00:04]} 46. Kf2 {[%clk 0:00:29]}  h5 {[%clk 0:00:04]} 47. Rb2 {[%clk 0:00:25]}  Rc3 {[%clk 0:00:01]} 48. Rxb6+ {[%clk 0:00:22]}  Ke5 {[%clk 0:00:02]} 49. Rb2 {[%clk 0:00:21]}  Kf6 {[%clk 0:00:02]} 50. Re2 {[%clk 0:00:21]}  Kg5 {[%clk 0:00:02]} 51. h3 {[%clk 0:00:19]}  f5 {[%clk 0:00:02]} 52. Kg2 {[%clk 0:00:15]}  h4 {[%clk 0:00:03]} 53. Rd2 {[%clk 0:00:11]}  hxg3 {[%clk 0:00:02]} 54. Kxg3 {[%clk 0:00:12]}  f4+ {[%clk 0:00:02]} 55. Kg2 {[%clk 0:00:12]}  Ra3 {[%clk 0:00:02]} 56. Re2 {[%clk 0:00:10]}  Rb3 {[%clk 0:00:02]} 57. Re8 {[%clk 0:00:09]}  Rb2+ {[%clk 0:00:02]} 58. Be2 {[%clk 0:00:10]}  Kh4 {[%clk 0:00:02]} 59. Rh8+ {[%clk 0:00:09]}  Kg5 {[%clk 0:00:02]} 60. Kf3 {[%clk 0:00:10]}  Rb3+ {[%clk 0:00:02]} 61. Kf2 {[%clk 0:00:10]}  Rb2 {[%clk 0:00:02]} 62. h4+ {[%clk 0:00:10]}  Kf5 {[%clk 0:00:02]} 63. Rf8+ {[%clk 0:00:08]}  Ke4 {[%clk 0:00:01]} 64. Rf6 {[%clk 0:00:07]}  Rb5 {[%clk 0:00:01]} 65. Rxg6 {[%clk 0:00:07]}  Kf5 {[%clk 0:00:01]} 66. Rg5+ {[%clk 0:00:06]}  Kf6 {[%clk 0:00:00]} 67. Rxb5 {[%clk 0:00:06]} 1-0


[Site "https://www.chess.com"]

[Event "Titled Tuesday Blitz August 22 Early 2023"]
[White "Clawitter, Craig"]
[Black "Harriott, Tyrell"]
[WhiteFideId "2023105"]
[BlackFideId "2086484"]
[WhiteElo "2224"]
[BlackElo "2418"]
[Result "0-1"]
[Round "9"]
[TimeControl "180+1"]
[Date "2023.08.22"]
[WhiteClock "0:00:06"]
[BlackClock "0:01:31"]
[Board "157"]

1. e4 {[%clk 0:02:55]}  d5 {[%clk 0:02:52]} 2. exd5 {[%clk 0:02:55]}  Nf6 {[%clk 0:02:52]} 3. d4 {[%clk 0:02:54]}  Qxd5 {[%clk 0:02:51]} 4. Nc3 {[%clk 0:02:45]}  Qd6 {[%clk 0:02:47]} 5. Nf3 {[%clk 0:02:45]}  a6 {[%clk 0:02:45]} 6. g3 {[%clk 0:02:45]}  Bg4 {[%clk 0:02:44]} 7. Bg2 {[%clk 0:02:46]}  Nc6 {[%clk 0:02:44]} 8. O-O {[%clk 0:02:43]}  Bxf3 {[%clk 0:02:32]} 9. Qxf3 {[%clk 0:02:24]}  Qxd4 {[%clk 0:02:31]} 10. Rd1 {[%clk 0:02:16]}  Qg4 {[%clk 0:02:28]} 11. Qxc6+ {[%clk 0:02:04]}  bxc6 {[%clk 0:02:26]} 12. Bxc6+ {[%clk 0:02:05]}  Nd7 {[%clk 0:02:22]} 13. Bxa8 {[%clk 0:01:36]}  Qc4 {[%clk 0:02:15]} 14. Be3 {[%clk 0:01:21]}  a5 {[%clk 0:02:05]} 15. Rd4 {[%clk 0:01:11]}  Qa6 {[%clk 0:02:02]} 16. Bf3 {[%clk 0:01:08]}  e5 {[%clk 0:01:59]} 17. Rd2 {[%clk 0:00:49]}  Bd6 {[%clk 0:01:57]} 18. Ne4 {[%clk 0:00:38]}  O-O {[%clk 0:01:52]} 19. Rad1 {[%clk 0:00:33]}  Nf6 {[%clk 0:01:42]} 20. Nxd6 {[%clk 0:00:30]}  cxd6 {[%clk 0:01:40]} 21. Rxd6 {[%clk 0:00:31]}  Qb5 {[%clk 0:01:37]} 22. Rd8 {[%clk 0:00:20]}  e4 {[%clk 0:01:33]} 23. Rxf8+ {[%clk 0:00:17]}  Kxf8 {[%clk 0:01:32]} 24. Be2 {[%clk 0:00:15]}  Qxe2 {[%clk 0:01:31]} 25. Bc5+ {[%clk 0:00:06]}  Ke8 {[%clk 0:01:31]} 0-1


[Site "https://www.chess.com"]

[Event "Titled Tuesday Blitz August 22 Early 2023"]
[White "Melikhov, Evgeny V."]
[Black "parintele_chess"]
[WhiteFideId "4122046"]
[WhiteElo "2394"]
[BlackElo "2225"]
[Result "1-0"]
[Round "9"]
[TimeControl "180+1"]
[Date "2023.08.22"]
[WhiteClock "0:00:55"]
[BlackClock "0:00:00"]
[Board "158"]

1. d4 {[%clk 0:03:00]}  Nf6 {[%clk 0:02:55]} 2. c4 {[%clk 0:03:00]}  g6 {[%clk 0:02:55]} 3. Nc3 {[%clk 0:03:01]}  Bg7 {[%clk 0:02:56]} 4. e4 {[%clk 0:03:01]}  d6 {[%clk 0:02:56]} 5. f3 {[%clk 0:03:02]}  O-O {[%clk 0:02:56]} 6. Be3 {[%clk 0:03:02]}  Nc6 {[%clk 0:02:56]} 7. Nge2 {[%clk 0:03:02]}  e5 {[%clk 0:02:56]} 8. d5 {[%clk 0:03:02]}  Ne7 {[%clk 0:02:56]} 9. g4 {[%clk 0:03:02]}  c6 {[%clk 0:02:54]} 10. Qd2 {[%clk 0:02:44]}  cxd5 {[%clk 0:02:53]} 11. cxd5 {[%clk 0:02:42]}  b5 {[%clk 0:02:30]} 12. Nxb5 {[%clk 0:02:35]}  Ba6 {[%clk 0:02:29]} 13. Nec3 {[%clk 0:02:31]}  Rb8 {[%clk 0:02:15]} 14. Nxa7 {[%clk 0:02:24]}  Bxf1 {[%clk 0:02:14]} 15. Kxf1 {[%clk 0:02:21]}  Qa5 {[%clk 0:02:12]} 16. Kg2 {[%clk 0:02:03]}  Qb4 {[%clk 0:01:31]} 17. Rhb1 {[%clk 0:01:46]}  Nd7 {[%clk 0:00:43]} 18. Nc6 {[%clk 0:01:37]}  Nxc6 {[%clk 0:00:43]} 19. dxc6 {[%clk 0:01:37]}  Nc5 {[%clk 0:00:41]} 20. Nd5 {[%clk 0:01:37]}  Qa4 {[%clk 0:00:35]} 21. Bxc5 {[%clk 0:01:22]}  dxc5 {[%clk 0:00:36]} 22. c7 {[%clk 0:01:21]}  Rbe8 {[%clk 0:00:23]} 23. b3 {[%clk 0:01:20]}  Qc6 {[%clk 0:00:21]} 24. Rc1 {[%clk 0:01:14]}  f5 {[%clk 0:00:21]} 25. Rc4 {[%clk 0:01:10]}  fxe4 {[%clk 0:00:19]} 26. Rxe4 {[%clk 0:01:06]}  Rf7 {[%clk 0:00:12]} 27. Rd1 {[%clk 0:01:05]}  Ref8 {[%clk 0:00:11]} 28. h3 {[%clk 0:00:55]}  Rxf3 {[%clk 0:00:10]} 29. Ne7+ {[%clk 0:00:55]}  Kh8 {[%clk 0:00:00]} 30. Nxc6 {[%clk 0:00:55]} 1-0


[Site "https://www.chess.com"]

[Event "Titled Tuesday Blitz August 22 Early 2023"]
[White "Semenova, Alina"]
[Black "Sovetbekova, Nurai"]
[WhiteFideId "24113875"]
[BlackFideId "13801910"]
[WhiteElo "2077"]
[BlackElo "2307"]
[Result "1-0"]
[Round "9"]
[TimeControl "180+1"]
[Date "2023.08.22"]
[WhiteClock "0:01:18"]
[BlackClock "0:01:38"]
[Board "161"]

1. e4 {[%clk 0:03:00]}  c5 {[%clk 0:03:00]} 2. Nf3 {[%clk 0:03:00]}  Nc6 {[%clk 0:03:00]} 3. d4 {[%clk 0:03:00]}  cxd4 {[%clk 0:03:01]} 4. Nxd4 {[%clk 0:03:01]}  Nf6 {[%clk 0:03:02]} 5. Nc3 {[%clk 0:03:00]}  e5 {[%clk 0:03:00]} 6. Ndb5 {[%clk 0:03:00]}  d6 {[%clk 0:03:00]} 7. Bg5 {[%clk 0:03:00]}  a6 {[%clk 0:03:00]} 8. Na3 {[%clk 0:02:54]}  b5 {[%clk 0:02:58]} 9. Nd5 {[%clk 0:02:47]}  Be7 {[%clk 0:02:58]} 10. Bxf6 {[%clk 0:02:48]}  Bxf6 {[%clk 0:02:59]} 11. c3 {[%clk 0:02:48]}  Rb8 {[%clk 0:02:58]} 12. Nc2 {[%clk 0:02:47]}  Bg5 {[%clk 0:02:57]} 13. Be2 {[%clk 0:02:46]}  O-O {[%clk 0:02:56]} 14. O-O {[%clk 0:02:45]}  Be6 {[%clk 0:02:54]} 15. b3 {[%clk 0:02:27]}  Ne7 {[%clk 0:02:52]} 16. c4 {[%clk 0:02:22]}  Nxd5 {[%clk 0:02:41]} 17. cxd5 {[%clk 0:02:17]}  Bd7 {[%clk 0:02:41]} 18. Nb4 {[%clk 0:02:15]}  Qb6 {[%clk 0:02:39]} 19. Qd3 {[%clk 0:02:08]}  f5 {[%clk 0:02:37]} 20. exf5 {[%clk 0:01:42]}  Bxf5 {[%clk 0:02:36]} 21. Qg3 {[%clk 0:01:41]}  Bf4 {[%clk 0:02:20]} 22. Qh4 {[%clk 0:01:31]}  Rbc8 {[%clk 0:02:08]} 23. Nc6 {[%clk 0:01:30]}  Kh8 {[%clk 0:01:49]} 24. Ne7 {[%clk 0:01:21]}  Rce8 {[%clk 0:01:42]} 25. Nxf5 {[%clk 0:01:21]}  Rxf5 {[%clk 0:01:41]} 26. Bd3 {[%clk 0:01:19]}  Rf6 {[%clk 0:01:38]} 27. Qxh7# {[%clk 0:01:18]} 1-0


[Site "https://www.chess.com"]

[Event "Titled Tuesday Blitz August 22 Early 2023"]
[White "Skiadopoulos, Nikolaos"]
[Black "GAO"]
[WhiteFideId "4200772"]
[WhiteElo "1834"]
[BlackElo "2288"]
[Result "1-0"]
[Round "9"]
[TimeControl "180+1"]
[Date "2023.08.22"]
[WhiteClock "0:00:05"]
[BlackClock "0:00:00"]
[Board "162"]

1. e4 {[%clk 0:03:00]}  c6 {[%clk 0:02:55]} 2. d4 {[%clk 0:02:59]}  d5 {[%clk 0:02:52]} 3. e5 {[%clk 0:02:59]}  Bf5 {[%clk 0:02:52]} 4. Ne2 {[%clk 0:02:58]}  e6 {[%clk 0:02:50]} 5. Nf4 {[%clk 0:02:58]}  h6 {[%clk 0:02:47]} 6. g4 {[%clk 0:02:53]}  Bh7 {[%clk 0:02:46]} 7. h4 {[%clk 0:02:52]}  c5 {[%clk 0:02:45]} 8. Bb5+ {[%clk 0:02:46]}  Nc6 {[%clk 0:02:44]} 9. Bxc6+ {[%clk 0:02:39]}  bxc6 {[%clk 0:02:45]} 10. c3 {[%clk 0:02:38]}  Rb8 {[%clk 0:02:42]} 11. Nd2 {[%clk 0:02:21]}  Ne7 {[%clk 0:02:36]} 12. h5 {[%clk 0:02:19]}  Nc8 {[%clk 0:02:30]} 13. Qa4 {[%clk 0:01:49]}  Qd7 {[%clk 0:02:21]} 14. dxc5 {[%clk 0:01:47]}  Bxc5 {[%clk 0:02:19]} 15. b4 {[%clk 0:01:46]}  Nb6 {[%clk 0:02:05]} 16. Qb3 {[%clk 0:01:43]}  Be7 {[%clk 0:02:03]} 17. a4 {[%clk 0:01:37]}  O-O {[%clk 0:01:54]} 18. a5 {[%clk 0:01:36]}  Nc8 {[%clk 0:01:15]} 19. Nf3 {[%clk 0:01:22]}  Be4 {[%clk 0:01:12]} 20. Rh3 {[%clk 0:01:19]}  c5 {[%clk 0:01:12]} 21. Nd2 {[%clk 0:01:13]}  cxb4 {[%clk 0:01:09]} 22. c4 {[%clk 0:01:09]}  dxc4 {[%clk 0:00:50]} 23. Qxc4 {[%clk 0:01:01]}  Bd5 {[%clk 0:00:49]} 24. Nxd5 {[%clk 0:00:59]}  Qxd5 {[%clk 0:00:50]} 25. Qxd5 {[%clk 0:00:59]}  exd5 {[%clk 0:00:50]} 26. Nb3 {[%clk 0:00:55]}  Re8 {[%clk 0:00:42]} 27. Bb2 {[%clk 0:00:54]}  Bf6 {[%clk 0:00:25]} 28. Re3 {[%clk 0:00:53]}  Bg5 {[%clk 0:00:24]} 29. Rd3 {[%clk 0:00:50]}  Nd6 {[%clk 0:00:19]} 30. Rxd5 {[%clk 0:00:44]}  Nc4 {[%clk 0:00:19]} 31. Bd4 {[%clk 0:00:43]}  Bf4 {[%clk 0:00:17]} 32. Kf1 {[%clk 0:00:34]}  Nxe5 {[%clk 0:00:17]} 33. Bxa7 {[%clk 0:00:31]}  Ra8 {[%clk 0:00:15]} 34. Bb6 {[%clk 0:00:29]}  Nxg4 {[%clk 0:00:14]} 35. Rd4 {[%clk 0:00:27]}  Nh2+ {[%clk 0:00:07]} 36. Kg2 {[%clk 0:00:26]}  Be5 {[%clk 0:00:08]} 37. Rh4 {[%clk 0:00:26]}  Bxa1 {[%clk 0:00:08]} 38. Nxa1 {[%clk 0:00:24]}  Re1 {[%clk 0:00:07]} 39. Nc2 {[%clk 0:00:24]}  Nf1 {[%clk 0:00:08]} 40. Nxe1 {[%clk 0:00:22]}  Nd2 {[%clk 0:00:08]} 41. Rxb4 {[%clk 0:00:21]}  Kf8 {[%clk 0:00:06]} 42. f4 {[%clk 0:00:18]}  Ke7 {[%clk 0:00:06]} 43. Kf2 {[%clk 0:00:18]}  Kd6 {[%clk 0:00:03]} 44. Ke2 {[%clk 0:00:18]}  Kd5 {[%clk 0:00:03]} 45. Kxd2 {[%clk 0:00:18]}  Kc6 {[%clk 0:00:04]} 46. Nd3 {[%clk 0:00:17]}  Re8 {[%clk 0:00:05]} 47. Ne5+ {[%clk 0:00:16]}  Kb7 {[%clk 0:00:06]} 48. Rc4 {[%clk 0:00:16]}  Ka6 {[%clk 0:00:06]} 49. Rc7 {[%clk 0:00:15]}  f6 {[%clk 0:00:06]} 50. Nd7 {[%clk 0:00:13]}  Rd8 {[%clk 0:00:05]} 51. Kc3 {[%clk 0:00:13]}  Kb5 {[%clk 0:00:06]} 52. Rc5+ {[%clk 0:00:11]}  Ka4 {[%clk 0:00:06]} 53. Rd5 {[%clk 0:00:12]}  Rc8+ {[%clk 0:00:06]} 54. Nc5+ {[%clk 0:00:11]}  Kb5 {[%clk 0:00:05]} 55. Rf5 {[%clk 0:00:09]}  Re8 {[%clk 0:00:04]} 56. Kd4 {[%clk 0:00:08]}  Re1 {[%clk 0:00:03]} 57. Ne4+ {[%clk 0:00:07]}  Ka6 {[%clk 0:00:03]} 58. Nc5+ {[%clk 0:00:05]}  Kb5 {[%clk 0:00:02]} 59. Nd7+ {[%clk 0:00:05]}  Ka6 {[%clk 0:00:02]} 60. Nxf6 {[%clk 0:00:05]}  gxf6 {[%clk 0:00:01]} 61. Rxf6 {[%clk 0:00:06]}  Rd1+ {[%clk 0:00:02]} 62. Ke4 {[%clk 0:00:05]}  Re1+ {[%clk 0:00:00]} 63. Kf5 {[%clk 0:00:05]} 1-0


[Site "https://www.chess.com"]

[Event "Titled Tuesday Blitz August 22 Early 2023"]
[White "Martins, Bruno Andre Leite"]
[Black "abelmat"]
[WhiteFideId "1942255"]
[WhiteElo "2521"]
[BlackElo "1932"]
[Result "1-0"]
[Round "9"]
[TimeControl "180+1"]
[Date "2023.08.22"]
[WhiteClock "0:00:25"]
[BlackClock "0:00:00"]
[Board "163"]

1. e4 {[%clk 0:03:00]}  e6 {[%clk 0:02:57]} 2. d4 {[%clk 0:03:00]}  d5 {[%clk 0:02:57]} 3. Nc3 {[%clk 0:03:00]}  dxe4 {[%clk 0:02:56]} 4. Nxe4 {[%clk 0:03:00]}  Nd7 {[%clk 0:02:57]} 5. Nf3 {[%clk 0:02:59]}  Ngf6 {[%clk 0:02:58]} 6. Bg5 {[%clk 0:02:58]}  Be7 {[%clk 0:02:58]} 7. Bxf6 {[%clk 0:02:56]}  Nxf6 {[%clk 0:02:57]} 8. Bd3 {[%clk 0:02:55]}  O-O {[%clk 0:02:55]} 9. O-O {[%clk 0:02:55]}  b6 {[%clk 0:02:52]} 10. Qe2 {[%clk 0:02:54]}  Bb7 {[%clk 0:02:50]} 11. c3 {[%clk 0:02:52]}  Qd5 {[%clk 0:02:34]} 12. Nxf6+ {[%clk 0:02:44]}  Bxf6 {[%clk 0:02:32]} 13. Rfe1 {[%clk 0:02:34]}  Qh5 {[%clk 0:02:31]} 14. Be4 {[%clk 0:02:32]}  Bxe4 {[%clk 0:02:17]} 15. Qxe4 {[%clk 0:02:33]}  Rad8 {[%clk 0:02:12]} 16. a4 {[%clk 0:02:29]}  a5 {[%clk 0:02:05]} 17. Rad1 {[%clk 0:02:19]}  Qd5 {[%clk 0:02:00]} 18. Qc2 {[%clk 0:02:14]}  h5 {[%clk 0:01:56]} 19. Ne5 {[%clk 0:02:14]}  h4 {[%clk 0:01:48]} 20. Re3 {[%clk 0:01:51]}  c5 {[%clk 0:01:38]} 21. Re4 {[%clk 0:01:34]}  cxd4 {[%clk 0:01:12]} 22. cxd4 {[%clk 0:01:17]}  Rc8 {[%clk 0:00:36]} 23. Qe2 {[%clk 0:01:12]}  Bxe5 {[%clk 0:00:20]} 24. Rxe5 {[%clk 0:01:11]}  Qa2 {[%clk 0:00:18]} 25. Re4 {[%clk 0:01:03]}  Qxa4 {[%clk 0:00:13]} 26. Rxh4 {[%clk 0:01:02]}  g6 {[%clk 0:00:13]} 27. Re1 {[%clk 0:00:49]}  Qc2 {[%clk 0:00:12]} 28. Qe5 {[%clk 0:00:46]}  f6 {[%clk 0:00:06]} 29. Qxe6+ {[%clk 0:00:46]}  Kg7 {[%clk 0:00:06]} 30. Qe7+ {[%clk 0:00:27]}  Rf7 {[%clk 0:00:05]} 31. Rh7+ {[%clk 0:00:27]}  Kxh7 {[%clk 0:00:06]} 32. Qxf7+ {[%clk 0:00:27]}  Kh6 {[%clk 0:00:06]} 33. Qxf6 {[%clk 0:00:26]}  Qxb2 {[%clk 0:00:03]} 34. Qh4+ {[%clk 0:00:26]}  Kg7 {[%clk 0:00:00]} 35. Re7+ {[%clk 0:00:25]} 1-0


[Site "https://www.chess.com"]